fUST/lending_fUST_20260624
["ID","MTS","AMOUNT","RATE_DAILY","PERIOD"]
[426321289,1782304238000,-54960.77135162,0.00023949,2]
[426321293,1782304238000,-157.0,0.00024406,30]
[426321288,1782304238000,-2998.10772623,0.0002376,2]
[426321295,1782304238000,-300.0,0.00024631,10]
[426321291,1782304238000,-193.0,0.0002405,2]
[426321294,1782304238000,-300.0,0.00024631,10]
[426321297,1782304238000,-155.0,0.0002504,120]
[426321298,1782304238000,-157.0,0.00025406,30]
[426321299,1782304238000,-32459.42318929,0.00025444,2]
[426321286,1782304238000,-1401.81636376,0.00023287,2]
[426321412,1782304240000,-267.77939956,0.00025444,2]
[426321410,1782304240000,-6095.87471478,0.00025444,2]
[426321407,1782304240000,-841.52588397,0.00025444,2]
[426321394,1782304240000,-11185.8070735,0.00025444,2]
[426321390,1782304240000,-785.49515302,0.0002519,2]
[426321392,1782304240000,-4180.92588625,0.00025444,2]
[426321722,1782304243000,-13659.74720752,0.00025444,2]
[426321725,1782304243000,-652.25,0.00025444,2]
[426321757,1782304243000,-617.46398293,0.00025444,2]
[426322161,1782304246000,-2655.10827618,0.00025612,2]
[426322160,1782304246000,-2969.77241742,0.00025444,2]
[426322128,1782304246000,-3846.79834478,0.00025444,2]
[426322558,1782304356000,155.70010534,0.0002252,30]
[426322561,1782304487000,269.06552924,0.00025041,120]
[426322563,1782304725000,157.0,0.00022521,30]
[426322564,1782304726000,157.0,0.00023521,30]
[426322571,1782305063000,-785.49515302,0.00022877,13]
[426322570,1782305063000,-283.471363,0.00022867,2]
[426322572,1782305064000,-500.0,0.0002334,2]
[426322574,1782305064000,-500.0,0.0002334,2]
[426322573,1782305064000,-500.0,0.0002334,2]
[426322576,1782305064000,-500.0,0.0002334,2]
[426322575,1782305064000,-500.0,0.0002334,2]
[426322577,1782305064000,-500.0,0.0002334,2]
[426322582,1782305064000,-279.47,0.00023341,2]
[426322580,1782305064000,-500.0,0.0002334,2]
[426322579,1782305064000,-500.0,0.0002334,2]
[426322581,1782305064000,-161.783,0.0002334,3]
[426322584,1782305064000,-1549175.6836,0.00023427,2]
[426322583,1782305064000,-3359.67750547,0.00023344,2]
[426322585,1782305064000,-441653.52730858,0.00023444,2]
[426322578,1782305064000,-300.89206993,0.0002334,2]
[426322588,1782305069000,-955.9142229,0.00024818,2]
[426322586,1782305069000,-1262439.72459142,0.00023444,2]
[426322590,1782305069000,-307.06925777,0.0002504,120]
[426322587,1782305069000,-172.0,0.00024741,2]
[426322591,1782305069000,-153.0,0.0002504,120]
[426322592,1782305069000,-190.0,0.00025041,120]
[426322593,1782305069000,-166.0184864,0.00025041,120]
[426322589,1782305069000,-160.0,0.0002504,120]
[426322596,1782305070000,-269.14,0.00025041,2]
[426322602,1782305070000,-731089.3136222,0.00025444,2]
[426322601,1782305070000,-953.34172632,0.00025375,2]
[426322600,1782305070000,-155.0,0.00025041,120]
[426322599,1782305070000,-157.0,0.00025041,120]
[426322598,1782305070000,-183.0,0.00025041,120]
[426322597,1782305070000,-227.10809299,0.00025041,120]
[426322595,1782305070000,-942.03,0.00025041,7]
[426322594,1782305070000,-1480.34,0.00025041,2]
[426322603,1782305146000,-905.69435256,0.00023444,2]
[426322604,1782305180000,49706.0,0.00025127,30]
[426322605,1782305190000,-191.05427504,0.00023444,2]
[426322607,1782305246000,-954.3132404,0.00023444,2]
[426322617,1782305419000,-274.4696311,0.0002321,13]
[426322618,1782305419000,-942.25999955,0.00025344,2]
[426322616,1782305419000,-5000.0,0.00018656,2]
[426322619,1782305419000,-2939.71781733,0.00025344,2]
[426322615,1782305419000,-5000.0,0.00018656,2]
[426322612,1782305419000,-9301.63855715,0.00018656,2]
[426322613,1782305419000,-5000.0,0.00018656,2]
[426322620,1782305419000,-500.0,0.00025443,2]
[426322614,1782305419000,-5000.0,0.00018656,2]
[426322621,1782305419000,-500.0,0.00025443,2]
[426322625,1782305419000,-450.0,0.00025443,2]
[426322624,1782305419000,-500.0,0.00025443,2]
[426322622,1782305419000,-510.62444895,0.00025443,2]
[426322632,1782305419000,-176.95,0.00025449,2]
[426322627,1782305419000,-2616.703413,0.00025444,2]
[426322626,1782305419000,-2616.703413,0.00025444,2]
[426322628,1782305419000,-2616.703413,0.00025444,2]
[426322629,1782305419000,-2616.703413,0.00025444,2]
[426322630,1782305419000,-1859010.8203,0.00025444,2]
[426322631,1782305419000,-1634.43623069,0.00025444,2]
[426322623,1782305419000,-500.0,0.00025443,2]
[426322634,1782305426000,-500.0,0.00025888,30]
[426322633,1782305426000,-165.0,0.00025443,2]
[426322645,1782305427000,-500.0,0.00026162,120]
[426322652,1782305427000,-160.0,0.00026483,2]
[426322650,1782305427000,-417.15472785,0.00026194,2]
[426322648,1782305427000,-500.0,0.00026162,120]
[426322649,1782305427000,-500.0,0.00026162,120]
[426322647,1782305427000,-500.0,0.00026162,120]
[426322646,1782305427000,-500.0,0.00026162,120]
[426322643,1782305427000,-156.13998283,0.00026041,120]
[426322651,1782305427000,-160.0,0.00026483,2]
[426322642,1782305427000,-157.0,0.00026041,120]
[426322641,1782305427000,-183.0,0.00026041,120]
[426322640,1782305427000,-190.0,0.00026041,120]
[426322639,1782305427000,-153.0,0.0002604,120]
[426322638,1782305427000,-160.0,0.0002604,120]
[426322636,1782305427000,-500.0,0.00025888,30]
[426322637,1782305427000,-521.322,0.00025888,30]
[426322635,1782305427000,-500.0,0.00025888,30]
[426322644,1782305427000,-500.0,0.00026162,120]
[426322653,1782305427000,-160.0,0.00026483,2]
[426322673,1782305427000,-153.0,0.0002904,120]
[426322655,1782305427000,-160.0,0.00026917,2]
[426322671,1782305427000,-1000.0,0.00028726,30]
[426322672,1782305427000,-226.2504255,0.00028817,2]
[426322670,1782305427000,-516.30827863,0.00028314,120]
[426322669,1782305427000,-157.0,0.00028041,120]
[426322667,1782305427000,-500.0,0.0002804,120]
[426322668,1782305427000,-183.840736,0.00028041,120]
[426322666,1782305427000,-153.0,0.0002804,120]
[426322665,1782305427000,-157.0,0.00027041,120]
[426322654,1782305427000,-160.0,0.00026483,2]
[426322663,1782305427000,-192.7690127,0.00027041,120]
[426322662,1782305427000,-153.0,0.0002704,120]
[426322659,1782305427000,-288.946,0.00026918,2]
[426322661,1782305427000,-161.38198936,0.0002704,120]
[426322660,1782305427000,-445.0,0.00026918,2]
[426322658,1782305427000,-1842.0,0.00026918,2]
[426322656,1782305427000,-1028.962,0.00026918,2]
[426322657,1782305427000,-958.0,0.00026918,2]
[426322664,1782305427000,-183.0,0.00027041,120]
[426322686,1782305428000,-182.06451227,0.0003,120]
[426322688,1782305428000,-153.0,0.0003004,120]
[426322692,1782305428000,-500.89691844,0.00030833,11]
[426322687,1782305428000,-417.15472785,0.0003,120]
[426322691,1782305428000,-160.0,0.00030272,120]
[426322685,1782305428000,-193.58569962,0.0003,120]
[426322689,1782305428000,-157.0,0.00030041,120]
[426322683,1782305428000,-613.83845474,0.0003,120]
[426322680,1782305428000,-166.44316853,0.0003,120]
[426322682,1782305428000,-276.44130537,0.0003,120]
[426322681,1782305428000,-238.46489561,0.0003,120]
[426322679,1782305428000,-307.06925776,0.0003,120]
[426322675,1782305428000,-600.0,0.00029621,30]
[426322678,1782305428000,-445.0,0.00029918,2]
[426322677,1782305428000,-186.0,0.00029918,2]
[426322676,1782305428000,-1107.039,0.00029918,2]
[426322690,1782305428000,-154.21491119,0.00030106,2]
[426322684,1782305428000,-231.41849252,0.0003,120]
[426322674,1782305428000,-157.0,0.00029041,120]
[426322693,1782305428000,-276.44130537,0.000309,120]
[426322694,1782305428000,-613.83845474,0.000309,120]
[426322695,1782305428000,-231.41849252,0.000309,120]
[426322712,1782305428000,-771.07455596,0.00032266,2]
[426322711,1782305428000,-616.85964477,0.0003189,2]
[426322710,1782305428000,-231.65346758,0.0003189,2]
[426322709,1782305428000,-504.74016913,0.0003189,2]
[426322708,1782305428000,-182.06451227,0.000318,120]
[426322706,1782305428000,-231.41849252,0.000318,120]
[426322707,1782305428000,-193.58569962,0.000318,120]
[426322704,1782305428000,-276.44130537,0.000318,120]
[426322713,1782305428000,-720.0,0.00032583,30]
[426322705,1782305428000,-613.83845474,0.000318,120]
[426322703,1782305428000,-462.64473358,0.00031515,2]
[426322700,1782305428000,-153.0,0.0003104,120]
[426322701,1782305428000,-157.0,0.00031041,120]
[426322699,1782305428000,-308.42982238,0.00030951,2]
[426322698,1782305428000,-154.7415,0.00030906,8]
[426322696,1782305428000,-193.58569962,0.000309,120]
[426322697,1782305428000,-182.06451227,0.000309,120]
[426322702,1782305428000,-252.37008457,0.00031514,2]
[426322724,1782305429000,-231.41849252,0.000338,120]
[426322725,1782305429000,-193.58569962,0.000338,120]
[426322728,1782305429000,-864.0,0.00035842,30]
[426322726,1782305429000,-1233.71928954,0.00034942,2]
[426322729,1782305429000,-186.0,0.00035918,2]
[426322723,1782305429000,-613.83845474,0.000338,120]
[426322727,1782305429000,-955.9142229,0.00035572,2]
[426322722,1782305429000,-276.44130537,0.000338,120]
[426322715,1782305429000,-613.83845474,0.000328,120]
[426322719,1782305429000,-186.0,0.00032918,2]
[426322720,1782305429000,-401.579,0.00032918,2]
[426322717,1782305429000,-193.58569962,0.000328,120]
[426322718,1782305429000,-925.28946715,0.00032829,2]
[426322716,1782305429000,-231.41849252,0.000328,120]
[426322714,1782305429000,-276.44130537,0.000328,120]
[426322730,1782305429000,-154.7415,0.00036906,14]
[426322721,1782305429000,-1079.50437834,0.00033674,2]
[426322732,1782305429000,-1584.0,0.00038356,30]
[426322750,1782305429000,-500.0,0.00039052,60]
[426322733,1782305429000,-180.08,0.000388,120]
[426322751,1782305429000,-197.97194916,0.00039052,60]
[426322748,1782305429000,-500.0,0.00039052,60]
[426322747,1782305429000,-151.5,0.00039052,60]
[426322746,1782305429000,-500.0,0.00039052,60]
[426322749,1782305429000,-151.5,0.00039052,60]
[426322745,1782305429000,-611.87917443,0.00039052,60]
[426322744,1782305429000,-500.0,0.00039052,60]
[426322743,1782305429000,-500.0,0.00039052,60]
[426322731,1782305429000,-180.08,0.000383,120]
[426322740,1782305429000,-16711.33798255,0.00039,2]
[426322741,1782305429000,-500.0,0.00039052,60]
[426322739,1782305429000,-5000.0,0.00039,120]
[426322738,1782305429000,-186.0,0.00038918,2]
[426322736,1782305429000,-173.061146,0.0003881,10]
[426322737,1782305429000,-1584.0,0.00038904,30]
[426322734,1782305429000,-576.27117535,0.000388,2]
[426322735,1782305429000,-10000.0,0.00038805,2]
[426322742,1782305429000,-500.0,0.00039052,60]
[426322764,1782305430000,-151.0,0.0004,2]
[426322765,1782305430000,-151.0,0.0004,2]
[426322767,1782305430000,-151.0,0.0004,2]
[426322763,1782305430000,-151.0,0.0004,2]
[426322768,1782305430000,-151.0,0.0004,2]
[426322759,1782305430000,-1401830.55112465,0.0003999,30]
[426322762,1782305430000,-151.0,0.0004,2]
[426322758,1782305430000,-20002.77411765,0.0003998,120]
[426322756,1782305430000,-1591.1,0.00039452,30]
[426322760,1782305430000,-155.0,0.0004,120]
[426322757,1782305430000,-180.08,0.000398,120]
[426322755,1782305430000,-1000.0,0.00039426,60]
[426322754,1782305430000,-180.08,0.000393,120]
[426322753,1782305430000,-203.99773421,0.00039052,60]
[426322752,1782305430000,-225.48981727,0.00039052,60]
[426322769,1782305430000,-151.0,0.0004,2]
[426322761,1782305430000,-151.0,0.0004,2]
[426322770,1782305430000,-151.0,0.0004,2]
[426322766,1782305430000,-151.0,0.0004,2]
[426322771,1782305430000,-151.0,0.0004,2]
[426322789,1782305430000,-15188.94040453,0.0004,40]
[426322787,1782305430000,-151.397,0.0004,2]
[426322786,1782305430000,-1272.22670405,0.0004,30]
[426322784,1782305430000,-172.982,0.0004,5]
[426322783,1782305430000,-151.0,0.0004,5]
[426322785,1782305430000,-75000.0,0.0004,30]
[426322772,1782305430000,-281.458,0.0004,2]
[426322781,1782305430000,-151.0,0.0004,5]
[426322782,1782305430000,-151.0,0.0004,5]
[426322777,1782305430000,-151.0,0.0004,3]
[426322778,1782305430000,-151.0,0.0004,3]
[426322780,1782305430000,-151.0,0.0004,5]
[426322776,1782305430000,-151.0,0.0004,3]
[426322774,1782305430000,-151.0,0.0004,3]
[426322775,1782305430000,-151.0,0.0004,3]
[426322788,1782305430000,-317.06705808,0.0004,30]
[426322773,1782305430000,-151.0,0.0004,3]
[426322779,1782305430000,-259.474,0.0004,3]
[426322790,1782305431000,10000.0,0.00038805,2]
[426322824,1782305431000,-1000.0,0.00040293,60]
[426322822,1782305431000,-1000.0,0.0004029,60]
[426322827,1782305431000,-151.0,0.00040293,30]
[426322831,1782305431000,-1000.0,0.00040295,60]
[426322839,1782305431000,-180.08,0.000408,120]
[426322833,1782305431000,-180.08,0.000403,120]
[426322835,1782305431000,-160.0,0.0004041,120]
[426322829,1782305431000,-280.657,0.00040293,30]
[426322837,1782305431000,-500.0,0.0004041,5]
[426322866,1782305432000,-150.32774896,0.000411,30]
[426322871,1782305432000,-399.76737761,0.00041238,30]
[426322861,1782305432000,-150.32774896,0.000411,30]
[426322859,1782305432000,-150.32774896,0.000411,30]
[426322857,1782305432000,-150.32774896,0.000411,30]
[426322851,1782305432000,-171.8,0.000411,30]
[426322853,1782305432000,-150.32774896,0.000411,30]
[426322849,1782305432000,-171.80314166,0.000411,30]
[426322847,1782305432000,-171.80314166,0.000411,30]
[426322843,1782305432000,-2000.0,0.000409,120]
[426322845,1782305432000,-231.87,0.00041096,90]
[426322841,1782305432000,-250.2716,0.00040879,14]
[426322855,1782305432000,-150.32774896,0.000411,30]
[426322869,1782305432000,-150.32,0.000411,30]
[426322874,1782305432000,-763.98898707,0.00041238,30]
[426322876,1782305432000,-3336.22263212,0.00041238,30]
[426322863,1782305432000,-150.32774896,0.000411,30]
[426322901,1782305432000,-180.08,0.000418,120]
[426322904,1782305432000,-723.75560852,0.000419,120]
[426322900,1782305432000,-2267.78486912,0.00041444,2]
[426322897,1782305432000,-348.91854388,0.00041444,2]
[426322891,1782305432000,-2616.703413,0.00041444,2]
[426322889,1782305432000,-2616.703413,0.00041444,2]
[426322893,1782305432000,-1656.17070084,0.00041444,2]
[426322887,1782305432000,-500.0,0.000414,120]
[426322878,1782305432000,-212.82,0.0004125,60]
[426322883,1782305432000,-180.08,0.000413,120]
[426322881,1782305432000,-168.69238791,0.0004125,60]
[426322885,1782305432000,-198.02875313,0.00041334,27]
[426322895,1782305432000,-960.53271216,0.00041444,2]
[426323671,1782305438000,-148.80957386,0.00041999,120]
[426323658,1782305438000,-203.27192,0.0003,120]
[426323662,1782305438000,-186.0,0.00041918,2]
[426323666,1782305438000,-90.27267516,0.00041995,3]
[426323664,1782305438000,-69.72732484,0.00041995,3]
[426323669,1782305438000,-160.9387052,0.00041995,5]
[426323660,1782305438000,-1276.24439148,0.000419,120]
[426323789,1782305440000,-603.41795332,0.00025444,2]
[426323803,1782305443000,-797.9436118,0.00025444,2]
[426323854,1782305446000,-6265.00718512,0.00045,120]
[426323838,1782305446000,-369.04,0.00043843,60]
[426323857,1782305446000,-200.0,0.00045,120]
[426323847,1782305446000,-1000.0,0.00044899,120]
[426323849,1782305446000,-186.0,0.00044918,2]
[426323848,1782305446000,-2000.0,0.000449,120]
[426323846,1782305446000,-180.08,0.000448,120]
[426323852,1782305446000,-624.1345517,0.00045,120]
[426323868,1782305446000,-2000.0,0.000469,120]
[426323851,1782305446000,-472.06046423,0.00045,120]
[426323861,1782305446000,-2000.0,0.000459,120]
[426323855,1782305446000,-2000.0,0.00045,120]
[426323856,1782305446000,-210.77551924,0.00045,120]
[426323859,1782305446000,-184.11,0.0004566,60]
[426323869,1782305446000,-50000.0,0.000469,120]
[426323870,1782305446000,-2000.0,0.00047,120]
[426323858,1782305446000,-180.08,0.000453,120]
[426323862,1782305446000,-1000.0,0.00046,120]
[426323863,1782305446000,-198.02875313,0.00046005,32]
[426323860,1782305446000,-180.08,0.000458,120]
[426323867,1782305446000,-180.08,0.000468,120]
[426323840,1782305446000,-2000.0,0.000439,120]
[426323853,1782305446000,-168.0,0.00045,120]
[426323842,1782305446000,-1016.0,0.00044,60]
[426323832,1782305446000,-180.08,0.000433,120]
[426323839,1782305446000,-29199.60576073,0.000439,120]
[426323816,1782305446000,-907021.83053488,0.00025444,2]
[426323820,1782305446000,-16694.28476609,0.000424,120]
[426323817,1782305446000,-851.19042614,0.00041999,120]
[426323819,1782305446000,-180.08,0.000423,120]
[426323818,1782305446000,-500.0,0.00042,120]
[426323821,1782305446000,-198.02875313,0.00042425,28]
[426323824,1782305446000,-475.52,0.000426,120]
[426323826,1782305446000,-197.73275326,0.000426,90]
[426323822,1782305446000,-500.0,0.00042431,30]
[426323825,1782305446000,-213.19,0.000426,120]
[426323829,1782305446000,-2000.0,0.000429,120]
[426323830,1782305446000,-506.78,0.00043,120]
[426323831,1782305446000,-1000.0,0.00043,120]
[426323828,1782305446000,-180.08,0.000428,120]
[426323833,1782305446000,-1000.0,0.00043368,60]
[426323827,1782305446000,-3237.2834333,0.000427,120]
[426323835,1782305446000,-14898.69348899,0.000435,120]
[426323843,1782305446000,-600.0,0.00044,120]
[426323844,1782305446000,-180.08,0.000443,120]
[426323834,1782305446000,-244.0,0.00043368,60]
[426323845,1782305446000,-198.02875313,0.00044761,31]
[426323836,1782305446000,-198.02875313,0.00043568,30]
[426323841,1782305446000,-27947.05,0.00043993,120]
[426323837,1782305446000,-180.08,0.000438,120]
[426323865,1782305446000,-180.08,0.000463,120]
[426323850,1782305446000,-886.13971684,0.00045,20]
[426323866,1782305446000,-955.9142229,0.00046327,2]
[426323895,1782305446000,-9260.627784,0.00048398,120]
[426323897,1782305446000,-10000.0,0.00048398,120]
[426323898,1782305446000,-10000.0,0.00048398,120]
[426323900,1782305446000,-3618.056168,0.00048398,120]
[426323902,1782305446000,-3618.056168,0.00048398,120]
[426323899,1782305446000,-10000.0,0.00048398,120]
[426323903,1782305446000,-3618.056168,0.00048398,120]
[426323901,1782305446000,-3618.056168,0.00048398,120]
[426323906,1782305446000,-3574.11943355,0.00048398,120]
[426323912,1782305446000,-10000.0,0.00049315,120]
[426323910,1782305446000,-1000.0,0.00049,120]
[426323909,1782305446000,-2000.0,0.000489,120]
[426323908,1782305446000,-198.02875313,0.00048646,35]
[426323911,1782305446000,-4420.1877124,0.00049,120]
[426323917,1782305446000,-1082.0,0.00049589,120]
[426323916,1782305446000,-3087.45102249,0.00049451,14]
[426323915,1782305446000,-80795.7058314,0.0004943,120]
[426323907,1782305446000,-197.0,0.00048538,120]
[426323914,1782305446000,-323.52,0.00049315,60]
[426323919,1782305446000,-1000.0,0.00049999,120]
[426323918,1782305446000,-2000.0,0.000499,120]
[426323920,1782305446000,-500.0,0.00049999,120]
[426323864,1782305446000,-192.54,0.00046166,60]
[426323896,1782305446000,-10000.0,0.00048398,120]
[426323905,1782305446000,-462286.79361515,0.00048398,120]
[426323913,1782305446000,-304.77521627,0.00049315,120]
[426323894,1782305446000,-9260.627784,0.00048398,120]
[426323893,1782305446000,-9260.627784,0.00048398,120]
[426323871,1782305446000,-198.02875313,0.000473,33]
[426323874,1782305446000,-1000.0,0.00047705,120]
[426323872,1782305446000,-180.08,0.000473,120]
[426323873,1782305446000,-168.0,0.000475,120]
[426323875,1782305446000,-492.0,0.00047705,120]
[426323881,1782305446000,-1000.0,0.00048,120]
[426323880,1782305446000,-1000.0,0.00047999,120]
[426323876,1782305446000,-180.08,0.000478,120]
[426323877,1782305446000,-2000.0,0.000479,120]
[426323878,1782305446000,-38291.2,0.000479,120]
[426323879,1782305446000,-186.0,0.00047918,2]
[426323889,1782305446000,-2702.467872,0.00048398,120]
[426323882,1782305446000,-1165.08456381,0.00048,120]
[426323885,1782305446000,-2616.703413,0.00048398,2]
[426323884,1782305446000,-2616.703413,0.00048398,2]
[426323887,1782305446000,-2616.703413,0.00048398,2]
[426323888,1782305446000,-2702.467872,0.00048398,120]
[426323886,1782305446000,-2616.703413,0.00048398,2]
[426323891,1782305446000,-2702.467872,0.00048398,120]
[426323892,1782305446000,-9260.627784,0.00048398,120]
[426323890,1782305446000,-2702.467872,0.00048398,120]
[426323883,1782305446000,-180.16,0.000483,120]
[426323904,1782305446000,-3000.0,0.00048398,120]
[426323957,1782305447000,-198.02875313,0.00050042,36]
[426323962,1782305447000,-150.0,0.00050516,2]
[426323950,1782305447000,-408.19,0.0005,90]
[426323965,1782305447000,-163.0,0.00050516,2]
[426323961,1782305447000,-150.0,0.00050516,2]
[426323963,1782305447000,-150.0,0.00050516,2]
[426323949,1782305447000,-408.2,0.0005,60]
[426323959,1782305447000,-150.0,0.00050516,2]
[426323956,1782305447000,-2200.0,0.0005,120]
[426323955,1782305447000,-1727.75984122,0.0005,30]
[426323960,1782305447000,-150.0,0.00050516,2]
[426323958,1782305447000,-150.0,0.00050516,2]
[426323964,1782305447000,-150.0,0.00050516,2]
[426323976,1782305447000,-5613.361541,0.0005107,85]
[426323966,1782305447000,-2000.0,0.000509,120]
[426323969,1782305447000,-3000.0,0.00051,85]
[426323968,1782305447000,-1000.0,0.00050999,120]
[426323979,1782305447000,-357.03,0.00051426,60]
[426323971,1782305447000,-3000.0,0.0005102,85]
[426323970,1782305447000,-3000.0,0.0005101,85]
[426323973,1782305447000,-3000.0,0.0005104,85]
[426323977,1782305447000,-217.0,0.0005119,30]
[426323972,1782305447000,-3000.0,0.0005103,85]
[426323974,1782305447000,-3000.0,0.0005105,85]
[426323975,1782305447000,-3000.0,0.0005106,85]
[426323980,1782305447000,-357.03,0.00051426,90]
[426323945,1782305447000,-168.0,0.0005,120]
[426323967,1782305447000,-186.0,0.00050918,120]
[426323944,1782305447000,-158.6,0.0005,120]
[426323927,1782305447000,-500.0,0.00049999,120]
[426323951,1782305447000,-408.19,0.0005,120]
[426323929,1782305447000,-500.0,0.00049999,120]
[426323922,1782305447000,-252.54577252,0.00049999,120]
[426323921,1782305447000,-500.0,0.00049999,120]
[426323928,1782305447000,-500.0,0.00049999,120]
[426323984,1782305447000,-500.0,0.00052,120]
[426323926,1782305447000,-500.0,0.00049999,120]
[426323925,1782305447000,-500.0,0.00049999,120]
[426323930,1782305447000,-500.0,0.00049999,120]
[426323924,1782305447000,-500.0,0.00049999,120]
[426323923,1782305447000,-500.0,0.00049999,120]
[426323931,1782305447000,-500.0,0.00049999,120]
[426323938,1782305447000,-227.14294949,0.0005,20]
[426323934,1782305447000,-500.0,0.00049999,120]
[426323948,1782305447000,-6000.0,0.0005,120]
[426323936,1782305447000,-500.0,0.00049999,120]
[426323937,1782305447000,-500.0,0.00049999,120]
[426323935,1782305447000,-500.0,0.00049999,120]
[426323939,1782305447000,-542.18850365,0.0005,10]
[426323932,1782305447000,-191.45704756,0.00049999,120]
[426323940,1782305447000,-199.0,0.0005,7]
[426323942,1782305447000,-561.82169283,0.0005,120]
[426323941,1782305447000,-169.24,0.0005,14]
[426323952,1782305447000,-408.2,0.0005,60]
[426323953,1782305447000,-1055.91313261,0.0005,2]
[426323943,1782305447000,-1000.0,0.0005,120]
[426323954,1782305447000,-1001.0,0.0005,120]
[426323947,1782305447000,-299.46150195,0.0005,2]
[426323946,1782305447000,-4268.04347307,0.0005,120]
[426323933,1782305447000,-500.0,0.00049999,120]
[426323988,1782305447000,-168.0,0.000525,120]
[426323978,1782305447000,-400.0,0.000514,120]
[426323990,1782305447000,-198.02875313,0.00052987,38]
[426324014,1782305447000,-500.0,0.00054794,120]
[426324019,1782305447000,-692.46,0.00054794,2]
[426324030,1782305447000,-692.46,0.00054794,2]
[426324029,1782305447000,-692.46,0.00054794,2]
[426324018,1782305447000,-199.03441146,0.00054794,120]
[426324021,1782305447000,-692.46,0.00054794,2]
[426324020,1782305447000,-692.46,0.00054794,2]
[426324022,1782305447000,-692.46,0.00054794,2]
[426324025,1782305447000,-692.46,0.00054794,2]
[426324026,1782305447000,-692.46,0.00054794,2]
[426324024,1782305447000,-692.46,0.00054794,2]
[426324028,1782305447000,-692.46,0.00054794,2]
[426324023,1782305447000,-692.46,0.00054794,2]
[426324027,1782305447000,-692.46,0.00054794,2]
[426324034,1782305447000,-692.46,0.00054794,2]
[426324031,1782305447000,-692.46,0.00054794,2]
[426324033,1782305447000,-692.46,0.00054794,2]
[426324035,1782305447000,-692.46,0.00054794,2]
[426324036,1782305447000,-692.46,0.00054794,2]
[426324032,1782305447000,-692.46,0.00054794,2]
[426324037,1782305447000,-692.46,0.00054794,2]
[426324041,1782305447000,-692.46,0.00054794,2]
[426324042,1782305447000,-692.62878554,0.00054794,2]
[426324039,1782305447000,-692.46,0.00054794,2]
[426324043,1782305447000,-500.0,0.00054794,120]
[426324038,1782305447000,-692.46,0.00054794,2]
[426324040,1782305447000,-692.46,0.00054794,2]
[426323983,1782305447000,-2000.0,0.000519,120]
[426324044,1782305447000,-500.0,0.00054794,120]
[426324017,1782305447000,-500.0,0.00054794,120]
[426324007,1782305447000,-517.91591884,0.00054794,120]
[426324045,1782305447000,-500.0,0.00054794,120]
[426324006,1782305447000,-205.17498,0.00054794,120]
[426324016,1782305447000,-500.0,0.00054794,120]
[426323985,1782305447000,-1000.0,0.00052476,120]
[426323981,1782305447000,-198.02875313,0.00051489,37]
[426323982,1782305447000,-460.56333068,0.00051803,30]
[426323987,1782305447000,-217.0,0.0005249,30]
[426323991,1782305447000,-500.0,0.00053,120]
[426323989,1782305447000,-6000.0,0.000525,120]
[426323992,1782305447000,-1000.62535884,0.00053,120]
[426323994,1782305447000,-150.0,0.00053656,2]
[426324004,1782305447000,-1000.0,0.00054794,120]